[Event "14th BPB Limburg Open 2022"]
[Site "Maastricht"]
[Date "2022.06.05"]
[Round "5.3"]
[White "Schroer, Marcel"]
[Black "Van Foreest, Lucas"]
[Result "0-1"]
[ECO "D02"]
[WhiteElo "2093"]
[BlackElo "2572"]
[Annotator "TA"]
[PlyCount "112"]
[EventDate "2022.06.03"]
[EventType "swiss"]
[EventCountry "NED"]
[SourceTitle "playchess.com"]
[Source "ChessBase"]
[SourceQuality "1"]
[TimeControl "7200+15"]

{[%evp 9,112,8,11,4,0,4,0,-1,2,0,23,3,6,2,15,20,24,0,16,-27,-16,-5,-12,-12,0,0,11,0,0,0,0,-10,0,0,0,0,0,-69,-56,-60,-58,-65,-60,-86,-36,-93,-96,-105,-87,-130,-118,-140,-143,-154,-153,-220,-198,-204,-161,-291,-322,-362,-197,-283,0,-378,-379,-501,-563,-563,-556,-552,-639,-647,-640,-633,-545,-626,-523,-511,-511,-615,0,-439,-439,-731,-729,-706,-671,-681,-647,-656,-608,-602,-302,-789,-710,-29983,-29984,-29984,-29985,-29986,-29986,-29986,-29987]} 1. d4 {[%emt 2:00:30]} d5 {[%emt 2:00:30]} 2. Nf3 {[%emt 0:00:00]} e6 {[%emt 0:00:00]} 3. g3 {[%emt 0:00:00]} b6 {[%emt 0:00:00]} 4. Bg2 {[%emt 0:00:00]} Bb7 {[%emt 0:00:00]} 5. O-O {[%emt 0:00:00]} Nd7 {[%emt 0:00:00]} 6. c4 {[%emt 0:00:00] D02: 1 d4 d5 2 Nf3 sidelines, including 2...Nf6 3 g3 and 2...Nf6 3 Bf4.} dxc4 {[%emt 0:00:00]} 7. Qa4 {[%emt 0:00:00]} a6 {[%emt 0:00:00]} 8. Qxc4 {[%emt 0:00:00][%cal Oe2e4] The position is equal.} b5 {[%emt 0:00:00]} 9. Qd3 {[%emt 0:00:00]} Ngf6 {[%emt 0:00:00]} 10. Bg5 {[%emt 0:00:00]} c5 {[%emt 0:00:00] [#]} 11. dxc5 $146 {[%emt 0:00:00]} ({Predecessor:} 11. a4 c4 12. Qc2 Be7 13. Nbd2 h6 14. Bxf6 Nxf6 15. b3 cxb3 16. Qxb3 b4 17. Rfc1 {0-1 (56) Podzielny,K (2385)-Hort,V (2575) Germany 1981}) 11... Nxc5 {[%emt 0:00:00]} (11... Bxc5 {looks sharper.} 12. a4 O-O 13. Bxf6 Nxf6 14. Qxd8 Rfxd8 15. Ne5 Rab8) 12. Qxd8+ {[%emt 0:00:00]} Rxd8 {[%emt 0:00:00]} 13. Nc3 {[%emt 0:00:00]} b4 {[%emt 0:00:00]} 14. Bxf6 {[%emt 0:00:00]} gxf6 {[%emt 0:00:00]} 15. Nd1 {[%emt 0:00:00]} Bh6 {[%emt 0:00:00]} 16. Ne3 {[%emt 0:00:00]} Bxe3 {[%emt 0:00:00]} 17. fxe3 {[%emt 0:00:00]} Na4 {[%emt 0:00:00][%cal Bc5a4,Ba4b2,Bb2c4,Bc4e5][%mdl 32]} 18. Nd4 {[%emt 0:00:00]} Bxg2 {[%emt 0:00:00]} 19. Kxg2 {[%emt 0:00:00]} Nxb2 {[%emt 0:00:00]} 20. Nc6 {[%emt 0:00:00]} Rd6 {[%emt 0:00:00]} 21. Nxb4 {[%emt 0:00:00]} a5 $36 {[%emt 0:00:00][%mdl 2048] Black fights for an advantage.} 22. Rab1 {[%emt 0:00:00]} Nc4 {[%emt 0:00:00]} 23. Nc2 {[%emt 0:00:00]} ({White should play} 23. Rfc1 $11 Nd2 24. Rc8+ Rd8 25. Rxd8+ Kxd8 26. Rd1 axb4 27. Rxd2+ Kc7 28. Rb2) 23... O-O $15 {[%emt 0:00:00]} 24. Rfd1 {[%emt 0:00:00]} Rxd1 {[%emt 0:00:00]} 25. Rxd1 {[%emt 0:00:00][%mdl 4096] Endgame KRN-KRN} Rc8 {[%emt 0:00:00]} 26. h3 {[%emt 0:00:00]} Ne5 {[%emt 0:00:00]} (26... Nb2 $17 27. Rd2 Rc3) 27. Ne1 {[%emt 0:00:00]} (27. Nd4 $15) 27... Rc3 $17 {[%emt 0:00:00]} 28. Kf2 {[%emt 0:00:00] [#]} Ra3 $1 {[%emt 0:00:00]} 29. Ra1 {[%emt 0:00:00]} Nc4 {[%emt 0:00:00] Black is more active.} 30. Nd3 {[%emt 0:00:00] [#]} Nd2 $1 {[%emt 0:00:00]} 31. h4 {[%emt 0:00:00]} f5 {[%emt 0:00:00]} 32. Kg2 {[%emt 0:00:00]} (32. Rg1 $17) 32... Kg7 {[%emt 0:00:00]} 33. Kf2 {[%emt 0:00:00]} Kf6 {[%emt 0:00:00]} 34. Kg2 {[%emt 0:00:00]} (34. Rg1 {is a better defense.}) 34... a4 $19 {[%emt 0:00:00]} 35. Kf2 {[%emt 0:02:27]} Ne4+ {[%emt 0:00:00]} (35... Nb3 $142 36. Rd1 Rxa2) 36. Kg2 {[%emt 0:00:02]} (36. Kf3 {is the only way for White.}) 36... Nd2 {[%emt 0:00:00]} 37. Kf2 {[%emt 0:00:17]} Nb3 {[%emt 0:00:00]} 38. axb3 {[%emt 0:00:30]} Rxa1 {[%emt 0:00:00]} 39. bxa4 {[%emt 0:00:05]} Rxa4 {[%emt 0:00:00] KR-KN} 40. Ne1 {[%emt 0:01:22]} h6 {[%emt 0:00:00]} 41. Ng2 {[%emt 0:01:11]} Ke5 {[%emt 0:00:00]} 42. Nf4 {[%emt 0:00:28]} Ke4 {[%emt 0:00:00] Threatens to win with ...e5.} 43. Nh5 {[%emt 0:00:27]} Rc4 {[%emt 0:00:00]} 44. Nf6+ {[%emt 0:00:10]} Ke5 {[%emt 0:00:00]} 45. Nh5 {[%emt 0:00:02]} Ra4 {[%emt 0:00:00]} 46. Nf4 {[%emt 0:00:28]} Kd6 {[%emt 0:00:00]} 47. Nh3 {[%emt 0:00:38]} (47. Kf3 $142) 47... e5 {[%emt 0:00:00]} 48. Ng1 {[%emt 0:00:05]} f6 {[%emt 0:00:00]} 49. Nf3 {[%emt 0:00:27]} Kd5 {[%emt 0:00:00]} 50. Ng1 {[%emt 0:01:04]} Ke4 {[%emt 0:00:00] White must now prevent ...Ra3.} 51. Nf3 {[%emt 0:00:30]} Ra2 {[%emt 0:00:00]} 52. Ne1 $2 {[%emt 0:00:40]} (52. Nh2) 52... Ra3 {[%emt 0:00:00]} 53. Nd3 {[%emt 0:00:08]} Rxd3 {[%emt 0:00:00] Black mates.} 54. exd3+ {[%emt 0:00:01]} Kxd3 {[%emt 0:00:00]} 55. Kf3 {[%emt 0:00:07]} h5 {[%emt 0:00:00]} 56. Kf2 {[%emt 0:00:44]} e4 {[%emt 0:00:00] Weighted Error Value: White=0.44/Black=0.24 (precise)} 0-1

[Event "14th BPB Limburg Open 2022"]
[Site "Maastricht"]
[Date "2022.06.05"]
[Round "5.4"]
[White "Lahaye, Rick"]
[Black "Dardha, Daniel"]
[Result "0-1"]
[ECO "A10"]
[WhiteElo "2410"]
[BlackElo "2561"]
[Annotator "TA"]
[PlyCount "132"]
[EventDate "2022.06.03"]
[EventType "swiss"]
[EventCountry "NED"]
[SourceTitle "playchess.com"]
[Source "ChessBase"]
[SourceQuality "1"]
[TimeControl "7200+15"]

{[%evp 9,132,-8,9,14,10,12,23,17,26,12,37,47,40,14,77,72,73,31,25,42,25,0,77,52,52,47,72,31,67,56,73,69,72,57,66,55,68,0,0,0,0,-12,-20,-58,2,0,0,-43,6,4,4,19,10,0,20,37,66,41,44,38,68,72,44,-1,52,-217,-217,-214,-206,-208,-206,-206,-206,-206,-199,-202,-193,-187,-183,-183,-54,-54,-54,-54,-54,-54,-54,-54,-52,-52,0,-54,-54,-54,-54,-54,-54,-54,-54,-54,-32,-32,-16,-16,0,-31,-16,-55,-16,-54,-54,-54,-54,-66,-66,-66,-65,-56,-56,-66,-66,-66,-66,-29988,-29989]} 1. c4 {[%emt 0:00:01]} d6 {[%emt 0:00:57]} 2. e3 {[%emt 0:01:53]} e5 {[%emt 0:01:21]} 3. a3 {[%emt 0:02:56]} g6 {[%emt 0:05:25]} 4. b4 {[%emt 0:00:13]} Bg7 {[%emt 0:00:14]} 5. Bb2 {[%emt 0:00:04]} f5 {[%emt 0:02:06]} 6. d4 {[%emt 0:01:20] [#] A10: English Opening: Unusual Replies for Black.} Qe7 $146 {[%emt 0:04:34]} ({Predecessor:} 6... e4 7. Nc3 Nf6 8. Nh3 O-O 9. Nf4 g5 10. Nfe2 Nc6 11. h4 h6 12. hxg5 hxg5 {1-0 (45) Gorshtein,I (2372)-Bronstein,O (2427) Ramat Gan 2020}) 7. Be2 {[%emt 0:15:29]} Nh6 {[%emt 0:06:45]} 8. Nc3 {[%emt 0:07:38] White has an edge.} Nd7 {[%emt 0:03:57]} 9. c5 {[%emt 0:17:17]} Nf6 {[%emt 0:03:34] Inhibits Nd5.} 10. cxd6 {[%emt 0:14:38]} cxd6 {[%emt 0:00:23]} 11. Bb5+ {[%emt 0:00:24]} Kf8 {[%emt 0:09:58]} (11... Bd7 $11) 12. dxe5 $16 {[%emt 0:04:00]} dxe5 {[%emt 0:00:09]} 13. Bc4 {[%emt 0:02:44]} Be6 {[%emt 0:16:34]} 14. Bxe6 {[%emt 0:06:00]} Qxe6 {[%emt 0:03:15]} 15. Nb5 {[%emt 0:00:06] Black must now prevent Nc7.} (15. Nf3 {is interesting.} Nf7 16. O-O Ke7 17. e4) 15... Rc8 {[%emt 0:18:15] Inhibits Nc7.} (15... Nd5 $11 {keeps the balance.}) 16. Nf3 {[%emt 0:08:20]} Nf7 {[%emt 0:04:20]} 17. Nxa7 {[%emt 0:01:22]} Rd8 {[%emt 0:06:57]} 18. Qc2 {[%emt 0:00:15][%cal Of3e5]} Ne4 {[%emt 0:00:27]} 19. O-O {[%emt 0:04:37]} Bf6 {[%emt 0:07:04]} 20. Nb5 {[%emt 0:02:46]} Rc8 {[%emt 0:00:52]} 21. Qe2 {[%emt 0:01:17]} Kg7 {[%emt 0:01:08]} 22. Rac1 {[%emt 0:00:43]} Qb3 {[%emt 0:02:59]} 23. Rc7 {[%emt 0:02:13]} ({Better is} 23. Rfd1 $14) 23... Rxc7 $11 {[%emt 0:01:49]} 24. Nxc7 {[%emt 0:00:02]} Rd8 {[%emt 0:01:29]} 25. Ba1 {[%emt 0:06:38]} (25. h3 $5 {[%cal Rf1c1]}) 25... Kg8 {[%emt 0:02:25][%mdl 1024] Black has compensation.} 26. Qb5 {[%emt 0:03:05][%csl LRb7,LRe5] [#]} Ned6 {[%emt 0:07:16]} (26... Nxf2 $1 $15 27. Kxf2 Qc2+ 28. Kg1 Qxc7) 27. Qc5 {[%emt 0:06:36]} Ne4 {[%emt 0:04:30]} 28. Qb5 {[%emt 0:00:10][%cal Rf3e5] [#]} Ned6 {[%emt 0:00:21]} (28... Nxf2 $1 $15 {was preferrable.} 29. Kxf2 Qc2+ 30. Kg1 Qxc7) 29. Qd5 {[%emt 0:06:11]} Qc4 $132 {[%emt 0:00:18][%mdl 2048] Black is not holding back} 30. Qxc4 {[%emt 0:01:11]} Nxc4 {[%emt 0:00:02]} 31. Nb5 {[%emt 0:00:32]} Ra8 {[%emt 0:02:43]} (31... Rd3 $5 {[%cal Rc4a3]}) 32. Bc3 {[%emt 0:00:42]} Kg7 {[%emt 0:00:27]} 33. Ra1 {[%emt 0:00:26]} Rc8 {[%emt 0:01:21]} 34. a4 {[%emt 0:02:40][%cal Ba3a4,Ba4a5][%mdl 32]} g5 {[%emt 0:00:41]} 35. a5 {[%emt 0:00:44]} g4 {[%emt 0:00:22]} 36. Nd2 {[%emt 0:00:08]} Nfd6 {[%emt 0:02:04]} (36... Ncd6 $1 $11 37. Nxd6 Nxd6) 37. Nxc4 $4 {[%emt 0:00:51][%mdl 8192]} (37. Na7 $1 $14 {keeps the upper hand.} Rc7 38. Nb3) 37... Nxb5 $19 {[%emt 0:00:10]} 38. a6 {[%emt 0:02:30]} bxa6 {[%emt 0:00:26]} ({Don't do} 38... Nxc3 39. a7 $1 $18) (38... Rxc4 $2 39. axb7 Rxc3 40. b8=Q $18) 39. Bxe5 {[%emt 0:00:23]} Rxc4 {[%emt 0:00:07]} 40. Bxf6+ {[%emt 0:00:01]} Kxf6 {[%emt 0:00:01]} 41. Rxa6+ {[%emt 0:00:02][%mdl 4096] Endgame KRN-KR} Kg5 {[%emt 0:00:44][%cal Rc4c1]} 42. h3 {[%emt 0:00:43]} Rxb4 {[%emt 0:01:35]} 43. hxg4 {[%emt 0:00:01]} fxg4 {[%emt 0:00:09]} 44. Rc6 {[%emt 0:00:28] [#]} Rb3 {[%emt 0:00:21]} (44... g3 $1 $19 {( -> ...Rb1+)} 45. fxg3 Na3 46. Rc5+ Kg4) 45. Rc5+ $15 {[%emt 0:00:09]} Kg6 {[%emt 0:00:02][%cal Og4g3]} 46. Rc6+ {[%emt 0:00:05]} Kg7 {[%emt 0:00:14][%cal Og4g3]} 47. Rc4 {[%emt 0:00:26]} h5 {[%emt 0:00:07] And now ...Nd6 would win.} 48. Rc5 {[%emt 0:00:06]} Kg6 {[%emt 0:00:13] ...Nd6 is the strong threat.} 49. Rc6+ {[%emt 0:00:02]} Kg7 {[%emt 0:00:24]} 50. Rc5 {[%emt 0:00:07]} Nd6 {[%emt 0:00:27] Hoping for ...Rb5.} 51. Rxh5 {[%emt 0:00:25]} Ne4 {[%emt 0:00:06] Inhibits Rg5+.} 52. Rf5 {[%emt 0:00:25]} Kg6 {[%emt 0:00:37]} 53. Rf4 {[%emt 0:00:17][%csl LRe4,LRg4]} Nf6 {[%emt 0:00:01]} 54. Kh2 {[%emt 0:00:55]} Rb1 {[%emt 0:00:01]} 55. Rc4 {[%emt 0:00:22]} Kg5 {[%emt 0:00:24]} 56. Rc5+ {[%emt 0:00:01]} Kg6 {[%emt 0:00:01][%cal Og4g3] Threatens to win with ...g3+!} 57. Rc4 {[%emt 0:00:01]} Rb5 {[%emt 0:00:24]} 58. f3 {[%emt 0:00:23]} Kg5 {[%emt 0:00:13]} 59. Rc3 {[%emt 0:00:31]} Kh4 {[%emt 0:00:15]} 60. Rc4 {[%emt 0:00:22]} Rb3 {[%emt 0:00:19]} 61. g3+ {[%emt 0:00:11]} Kg5 {[%emt 0:00:01]} 62. Rc5+ {[%emt 0:00:03]} Kg6 {[%emt 0:00:00]} 63. fxg4 {[%emt 0:00:04]} Rb2+ {[%emt 0:00:05]} 64. Kg1 {[%emt 0:00:38]} Nxg4 {[%emt 0:00:12]} 65. Rc6+ {[%emt 0:00:19]} Kf5 {[%emt 0:00:04]} 66. Rc4 $2 {[%emt 0:00:02][%mdl 8192]} (66. Kf1 $15) 66... Rb1+ {[%emt 0:00:02] Weighted Error Value: White=0.17 (very precise) /Black=0.21 (precise)} 0-1

[Event "14th BPB Limburg Open 2022"]
[Site "Maastricht"]
[Date "2022.06.05"]
[Round "5.5"]
[White "Strating, Sybolt"]
[Black "Ernst, Sipke"]
[Result "0-1"]
[ECO "E62"]
[WhiteElo "2295"]
[BlackElo "2547"]
[Annotator "TA"]
[PlyCount "126"]
[EventDate "2022.06.03"]
[EventType "swiss"]
[EventCountry "NED"]
[SourceTitle "playchess.com"]
[Source "ChessBase"]
[SourceQuality "1"]
[TimeControl "7200+15"]

{[%evp 18,126,37,35,43,43,48,41,58,43,47,42,47,41,48,19,18,-12,-8,-22,-20,-25,-17,-18,-7,-35,-30,-39,-18,-24,-12,-40,-31,-36,-12,-10,0,0,0,0,0,15,0,0,0,-6,0,-31,-32,-53,-51,-91,-52,-75,-52,-123,-75,-126,-62,-168,-60,-191,-128,-127,-141,-135,-113,-127,-91,-252,-125,-113,-97,-427,-400,-682,-634,-667,-646,-673,-643,-619,-608,-534,-450,-447,-305,-305,-305,-539,-301,-275,0,-583,-579,-552,-540,-847,-840,-1031,-772,-1543,-1576,-2279,-2016,-29974,-29974,-29980,-29981,-29993,-1113]} 1. d4 {[%emt 0:00:04]} g6 {[%emt 0:02:27]} 2. Nf3 {[%emt 0:00:22]} Bg7 {[%emt 0:01:22]} 3. c4 {[%emt 0:00:26]} Nf6 {[%emt 0:00:11]} 4. Nc3 {[%emt 0:00:30]} O-O {[%emt 0:01:13]} 5. g3 {[%emt 0:00:23]} d6 {[%emt 0:03:56]} 6. Bg2 {[%emt 0:00:12]} c6 {[%emt 0:00:51]} 7. O-O {[%emt 0:00:35]} Bf5 {[%emt 0:00:54]} 8. b3 {[%emt 0:09:45]} Ne4 {[%emt 0:02:17]} 9. Bb2 {[%emt 0:00:27]} Qc8 {[%emt 0:00:48]} 10. Re1 {[%emt 0:03:09]} Nxc3 {[%emt 0:03:36] E62: King's Indian: Fianchetto: 6...c6 and Panno Variation (6...Nc6) without ...a6.} 11. Bxc3 {[%emt 0:00:06]} Be4 {[%emt 0:00:12]} 12. Qd2 {[%emt 0:03:58]} Nd7 {[%emt 0:11:00] White is slightly better.} 13. Bh3 {[%emt 0:01:54]} Bxf3 {[%emt 0:00:50]} 14. exf3 {[%emt 0:00:07] [#]} Re8 $146 {[%emt 0:05:48]} ({Predecessor:} 14... e6 15. Bb4 Qc7 16. Rad1 a5 17. Bc3 Nf6 18. f4 d5 19. Bg2 Ra6 20. a4 Raa8 {½-½ (42) Liebert,H (2316)-Heinrich,M (2137) Germany 2001}) 15. Re3 {[%emt 0:04:49]} Qd8 {[%emt 0:04:09]} 16. f4 {[%emt 0:07:21]} d5 {[%emt 0:05:31]} 17. cxd5 {[%emt 0:20:30]} cxd5 {[%emt 0:00:13]} 18. Ba5 {[%emt 0:00:06]} b6 {[%emt 0:02:32]} 19. Bc3 {[%emt 0:00:09]} e6 {[%emt 0:01:13]} 20. Bf1 {[%emt 0:00:55]} Nf6 {[%emt 0:02:16]} 21. Bb2 {[%emt 0:04:21]} Ne4 {[%emt 0:01:08]} 22. Qd1 {[%emt 0:03:52]} Rc8 {[%emt 0:01:44]} 23. Bd3 {[%emt 0:07:43]} Nd6 {[%emt 0:02:52]} 24. Re2 {[%emt 0:00:51]} (24. Ba6 $5 {[%cal Ra6c8]}) 24... b5 {[%emt 0:12:10]} 25. a4 {[%emt 0:05:22]} bxa4 {[%emt 0:02:01]} 26. Rxa4 {[%emt 0:01:39]} Qb6 {[%emt 0:03:48]} 27. Ba3 {[%emt 0:07:49]} a5 {[%emt 0:03:21]} 28. Bc5 {[%emt 0:01:54]} Rxc5 {[%emt 0:01:10]} 29. dxc5 {[%emt 0:00:06]} Qxc5 {[%emt 0:00:03]} 30. Rc2 {[%emt 0:03:30]} Bc3 {[%emt 0:05:00]} 31. Qc1 {[%emt 0:06:25]} Rc8 {[%emt 0:03:08]} 32. Kg2 {[%emt 0:08:59]} d4 {[%emt 0:00:45][%mdl 1024] Black has compensation.} 33. f3 {[%emt 0:06:58]} Qd5 {[%emt 0:07:37]} 34. Ra3 {[%emt 0:03:41]} Rc7 {[%emt 0:01:40] Black is more active.} 35. g4 {[%emt 0:00:19]} Rc5 {[%emt 0:02:08]} 36. Qf1 {[%emt 0:01:07]} (36. Ra1 $15) 36... Qc6 {[%emt 0:01:50]} (36... Ne8 $142 37. Be4 Qd6) 37. Qe2 {[%emt 0:02:03] [#]} (37. Ra4 $142) 37... Qc7 {[%emt 0:00:22]} (37... Ne8 $1 $17 {Hoping for ...Nf6.} 38. Qe4 Qc8) 38. Qd1 {[%emt 0:02:34]} (38. Ra4 $15) 38... Kf8 {[%emt 0:02:14]} ({Black should play} 38... Nc8 $19 39. f5 exf5 40. gxf5 Ne7) 39. h4 {[%emt 0:00:23] [#]} ({White should try} 39. Qc1 $15) 39... Ne8 {[%emt 0:00:18]} (39... Nc8 $1 $19 40. Bc4 Nb6) 40. Qc1 {[%emt 0:00:16][%cal Ob3b4]} Nf6 {[%emt 0:01:08] Strongly threatening ...Nd5.} 41. Bc4 {[%emt 0:01:09]} Bb4 {[%emt 0:03:32]} 42. Raa2 {[%emt 0:00:17][%cal Of4f5]} Qd6 {[%emt 0:02:29]} 43. Kg3 $2 {[%emt 0:01:02]} (43. f5 $17) 43... h5 {[%emt 0:04:58]} (43... d3 $19 {is more deadly.} 44. Rd2 (44. Bxd3 $2 Qxd3 45. Rxc5 Ne4+ 46. Kg2 Nxc5 $19) 44... Qd4) 44. g5 $17 {[%emt 0:01:13]} Ne8 {[%emt 0:00:30][%cal Bf6e8,Be8g7,Bg7f5][%mdl 32]} 45. Re2 $2 {[%emt 0:00:10][%mdl 8192]} (45. Bd3 $17 Bc3 46. Ra4) 45... d3 $19 {[%emt 0:02:35][%cal Bd4d3,Bd3d2][%mdl 32]} 46. Re3 {[%emt 0:00:33]} (46. Red2 $142 Ng7 47. Qa1 Nf5+ 48. Kg2 Ne3+ 49. Kf2 Nxc4 50. Qh8+ Ke7 51. Qf6+ Ke8 52. Qh8+ Kd7 53. bxc4) 46... Ng7 {[%emt 0:00:29] Threatens to win with ...Nf5+.} 47. Re4 {[%emt 0:00:52]} Nf5+ {[%emt 0:01:04]} 48. Kh3 {[%emt 0:00:05]} d2 {[%emt 0:00:12]} 49. Qd1 {[%emt 0:00:02]} Kg8 {[%emt 0:02:45]} 50. Ra1 {[%emt 0:00:03]} Qd7 {[%emt 0:03:33] White must now prevent ...Nd6.} 51. Qe2 {[%emt 0:00:34]} Kh7 {[%emt 0:01:08] And now ...Nd6 would win.} 52. Rd1 {[%emt 0:00:45]} Rc7 {[%emt 0:00:32]} 53. Re5 $2 {[%emt 0:00:21]} (53. Bb5 {keeps fighting.} Qd6 54. Bc4) 53... Bc3 {[%emt 0:00:12]} 54. Re4 {[%emt 0:00:16]} Bb4 $2 {[%emt 0:00:32]} (54... Rb7 55. Qf1 Kg8) 55. Re5 {[%emt 0:00:02]} Qd4 {[%emt 0:00:09]} 56. Re4 {[%emt 0:00:06]} Qc3 {[%emt 0:00:09]} 57. Qf2 {[%emt 0:00:20]} a4 {[%emt 0:00:37]} 58. Be2 {[%emt 0:00:42]} Bc5 {[%emt 0:00:52]} 59. Qf1 {[%emt 0:00:22]} Ne3 {[%emt 0:00:49]} 60. Rxe3 {[%emt 0:00:06]} Qxe3 {[%emt 0:00:08]} 61. bxa4 {[%emt 0:00:01]} Qxf4 {[%emt 0:00:02] Black mates.} 62. a5 {[%emt 0:00:15]} Bd6 {[%emt 0:00:05][%csl Gd6][%cal Rf4g3]} 63. Qg2 {[%emt 0:00:02]} Qf5+ {[%emt 0:00:02] Weighted Error Value: White=0.70/Black=0.32} (63... Rc3 $142 64. Rg1 Qf5+ 65. Qg4 hxg4+ 66. Kg2 gxf3+ 67. Kf2 Qc5+ 68. Kf1 Rc1+ 69. Bd1 Rxd1#) 0-1

[Event "14th BPB Limburg Open 2022"]
[Site "Maastricht"]
[Date "2022.06.05"]
[Round "5.6"]
[White "Van Dael, Siem"]
[Black "Zwirs, Nico"]
[Result "0-1"]
[ECO "B90"]
[WhiteElo "2342"]
[BlackElo "2468"]
[Annotator "TA"]
[PlyCount "70"]
[EventDate "2022.06.03"]
[EventType "swiss"]
[EventCountry "NED"]
[SourceTitle "playchess.com"]
[Source "ChessBase"]
[SourceQuality "1"]
[TimeControl "7200+15"]

{[%evp 23,70,27,22,29,24,6,27,4,4,4,1,14,13,0,0,0,-10,-14,0,-12,0,-22,-23,-18,-16,-34,-26,-35,-27,-56,-24,-40,-27,-220,-227,-535,-484,-29979,-29980,-29980,-29981,-29981,-29982,-29982,-29983,-29982,-29983,-29987,-29988]} 1. e4 {[%emt 0:00:08]} c5 {[%emt 0:00:06]} 2. Nf3 {[%emt 0:00:05]} d6 {[%emt 0:00:05]} 3. d4 {[%emt 0:00:04]} cxd4 {[%emt 0:00:03]} 4. Nxd4 {[%emt 0:00:08]} Nf6 {[%emt 0:00:05]} 5. Nc3 {[%emt 0:00:06]} a6 {[%emt 0:00:03]} 6. Be3 {[%emt 0:00:12]} e5 {[%emt 0:00:07]} 7. Nb3 {[%emt 0:00:05]} Be6 {[%emt 0:00:13]} 8. f3 {[%emt 0:00:08]} Be7 {[%emt 0:00:17]} 9. Qd2 {[%emt 0:00:07]} Nbd7 {[%emt 0:00:14]} 10. g4 {[%emt 0:01:11]} O-O {[%emt 0:00:10]} 11. O-O-O {[%emt 0:00:07]} b5 {[%emt 0:00:06]} 12. g5 {[%emt 0:00:06]} Nh5 {[%emt 0:00:05]} 13. Kb1 {[%emt 0:03:34] B90: Sicilian Najdorf: Unusual White 6th moves, 6 Be3 Ng4 and 6 Be3 e5.} Nb6 {[%emt 0:01:21]} 14. Na5 {[%emt 0:07:20] Hoping for Nc6.} Rc8 {[%emt 0:00:38][%cal Oh5f4] Prevents Nc6.} 15. Nd5 {[%emt 0:02:35] White has an edge. Nowadays more popular than 15.a3.} ({Much weaker is} 15. Nb7 Qc7 16. Na5 (16. Nxd6 $2 Rcd8 $19) 16... f5 $15) 15... Nxd5 {[%emt 0:00:51]} 16. exd5 {[%emt 0:00:05]} Bxd5 {[%emt 0:00:14]} 17. Qxd5 {[%emt 0:00:04] Threatens to win with Nc6.} Qxa5 {[%emt 0:00:03]} 18. Bd3 {[%emt 0:05:28]} g6 {[%emt 0:02:15]} 19. h4 {[%emt 0:07:14]} Qc7 {[%emt 0:04:09]} 20. Rhg1 {[%emt 0:09:37] [#]} Rfe8 $146 {[%emt 0:02:51]} ({Predecessor:} 20... Rb8 21. Be4 {½-½ (21) Zhigalko,S (2647)-Borovikov,V (2599) Alushta 2010}) 21. Rg4 {[%emt 0:05:40]} Bf8 {[%emt 0:02:01]} 22. a4 {[%emt 0:05:40]} Nf4 {[%emt 0:10:50]} 23. Bxf4 {[%emt 0:01:24]} exf4 {[%emt 0:00:52]} 24. Rxf4 {[%emt 0:04:14]} Re5 {[%emt 0:00:29]} 25. Qb3 {[%emt 0:00:57][%cal Ra4b5]} d5 {[%emt 0:15:59]} 26. Rf6 {[%emt 0:04:11]} bxa4 {[%emt 0:06:40]} 27. Qxa4 {[%emt 0:02:38]} Rb8 {[%emt 0:11:49][%cal Oe5e1,Bc8b8,Bb8b2,Bb2c2][%mdl 32] And now ...Re1! would win.} 28. Qxa6 $2 {[%emt 0:31:11] [#] Loses the game.} (28. Rxa6 $11 {and White stays safe.} Qc3 29. Bb5 Qxf3 30. Rf1) 28... Bg7 $1 $40 {[%emt 0:21:51][%mdl 128] Black is out for blood.} 29. Rc6 $2 {[%emt 0:08:00] [#]} (29. Qd6 Re7 30. Qxc7 (30. Qxd5 $2 Bxf6 31. gxf6 Ree8 $19) 30... Rxc7 31. Ra6 Rxb2+ 32. Kc1) 29... Re1 $1 {[%emt 0:07:25]} 30. Rxe1 {[%emt 0:03:15]} (30. Rxc7 $2 {gets mated.} Rxd1+ 31. Ka2 Rxb2+ 32. Ka3 Ra1#) (30. c3 $19 Rxd1+ 31. Kc2 Qh2+ 32. Kxd1 Rxb2 33. Rc8+ Bf8 34. Be2 Qh1+ 35. Bf1 Qxf3+ 36. Kc1) 30... Rxb2+ {[%emt 0:00:33] Black mates.} 31. Ka1 {[%emt 0:06:26]} Rxc2+ {[%emt 0:09:54][%mdl 64] Discovered Attack} 32. Kb1 {[%emt 0:00:05]} Rb2+ {[%emt 0:00:05]} 33. Ka1 {[%emt 0:00:03]} Re2+ {[%emt 0:00:36][%mdl 64] Discovered Attack} 34. Kb1 {[%emt 0:00:08]} Rxe1+ {[%emt 0:00:23]} 35. Kc2 {[%emt 0:00:05]} Qh2+ {[%emt 0:00:06] Weighted Error Value: White=0.65/Black=0.01 (flawless)} 0-1